Cogmind - Beta 9.2 @@@ ROGUE MODE // 2019.12.08 @ 17:46:03 Player: Trione Result: Destroyed by 8R-AWN with 8R-AWN's Boregun Performance ------------- Evolutions (1) 500 Regions Visited (5) 1000 Robots Destroyed (130) 650 Value Destroyed (1983) 1983 Prototype IDs (24) 480 Alien Tech Used (0) 0 Bonus (242) 242 TOTAL SCORE: 4855 Bonus ------- High Alert Combat Kills 169 Follower Combat Kills 86 Aligned with FarCom 300 Friendly Fire -313 Cogmind --------- Core Integrity 0/400 Matter 290/300 Energy 48/265 System Corruption 0% Temperature Cool (359) Movement Treading (200) Ox2 Location -9/Exiles Parts ------- > --- POWER (1) -------- Reinforced Ion Engine > --- PROPULSION (2) --- Light Treads Light Treads > --- UTILITY (4) ------ Humpback Light Armor Plating > --- WEAPON (2) ------- EM Shotgun EM Shotgun > --- INVENTORY (24) --- Light Treads Light Treads Light Treads Light Treads Potential Leg Potential Leg Wheel Humpback Large Matter Pod (121) Large Matter Pod (0) Beam Rifle Particle Gun Advanced Beam Cannon Advanced Beam Cannon Improved Assault Rifle Improved Assault Rifle High-powered Shotgun Rocket Launcher Rocket Launcher Field Lobotomy Kit Katana Peak State ------------ > --- POWER ------------ Light Nuclear Core > --- PROPULSION ------- Potential Leg Potential Leg > --- UTILITY ---------- High-capacity Storage Unit High-capacity Storage Unit Humpback > --- WEAPON ----------- Beam Rifle High-powered Shotgun > --- INVENTORY -------- Reinforced Ion Engine Light Treads Light Treads Light Treads Light Treads Light Treads Large Storage Unit Large Storage Unit Humpback Humpback Large Matter Pod Experimental Sensor Array Light Armor Plating Light Armor Plating Chronowheel EM Pulse Gun EM Shotgun EM Shotgun EM Shotgun EM Shotgun EM Shotgun Particle Gun Spread Laser Advanced Beam Cannon Advanced Beam Cannon Improved Assault Rifle Improved Assault Rifle Light Cannon Improved Light Cannon Rocket Launcher Rocket Launcher Field Lobotomy Kit Flail Katana Blade Trap Blade Trap Blade Trap Blade Trap [Rating: 40] Favorites ----------- Power Ion Engine Engine Ion Engine Power Core Light Nuclear Core Propulsion Compact Wheel Treads Light Treads Leg Potential Leg Wheel Compact Wheel Utility Small Storage Unit Device Improved Terrain Scanner Storage Small Storage Unit Protection Light Armor Plating Weapon Light Assault Rifle Energy Gun Beam Rifle Energy Cannon Beam Cannon Ballistic Gun Light Assault Rifle Ballistic Cannon Light Cannon Launcher Rocket Launcher Special Weapon Mining Laser Impact Weapon Flail Slashing Weapon Katana Build | -11 -10 -10 -9 -9 -9 ------- Run | Scr Mat Min Mat Min Exi Slots Evolved 2 | . . . 2 . . Power . | . . . . . . Propulsion . | . . . . . . Utility 2 | . . . 2 . . Weapon . | . . . . . . Parts Attached 131 | 7 24 18 49 13 20 Power 7 | 1 2 . 3 . 1 Engine 6 | 1 2 . 2 . 1 Core 1 | . . . 1 . . Reactor . | . . . . . . Propulsion 40 | 2 11 3 15 4 5 Treads 19 | . 5 1 8 2 3 Leg 2 | . . . . . 2 Wheel 19 | 2 6 2 7 2 . Hover . | . . . . . . Flight . | . . . . . . Utility 19 | 2 3 2 7 1 4 Device 1 | . . . 1 . . Storage 13 | 2 3 2 3 1 2 Processor . | . . . . . . Hackware . | . . . . . . Protection 5 | . . . 3 . 2 Artifact . | . . . . . . Weapon 65 | 2 8 13 24 8 10 Energy Gun 12 | . 1 3 4 1 3 Energy Cannon 13 | . 3 4 4 1 1 Ballistic Gun 11 | 2 2 . 4 1 2 Ballistic Cannon 2 | . . 1 . 1 . Launcher 17 | . 2 4 5 3 3 Special Weapon 1 | . . 1 . . . Impact Weapon 8 | . . . 7 1 . Slashing Weapon 1 | . . . . . 1 Piercing Weapon . | . . . . . . Special Melee Weapon . | . . . . . . Unidentified Prototypes 2 | . . . 2 . . Parts Lost 12 | . 1 3 5 1 2 Power 2 | . . . 1 . 1 Propulsion 2 | . 1 . . 1 . Utility 3 | . . . 2 . 1 Weapon 5 | . . 3 2 . . Highest Loss Streak 2 | . 1 2 2 1 2 Average Slot Usage (%) 96 | . 99 97 99 100 87 Engine 7 | . 14 14 9 . . Core 4 | . . . 1 11 10 Treads 10 | . 3 . 12 19 13 Leg 1 | . . . . . 8 Wheel 11 | . 24 27 9 2 . Device 1 | . . . 4 . . Storage 32 | . 28 28 32 43 31 Protection 3 | . . . 6 . 4 Energy Gun 3 | . . 1 3 2 6 Energy Cannon 6 | . 12 11 5 8 . Ballistic Gun 8 | . 15 . 8 7 7 Ballistic Cannon 1 | . . 9 . 1 . Impact Weapon 1 | . . . 4 1 . Naked Turns . | . . . . . . Heaviest Build 155 | 15 46 64 99 108 155 Greatest Support 60 | 26 40 26 40 40 60 Greatest Overweight (x) 5 | 4 1 3 3 5 3 Average Overweight (x) 2 | 3 . 1 2 2 1 Largest Inventory Capacity 44 | 8 16 18 26 32 44 Average Capacity 17 | 7 10 17 25 31 33 Most Carried 40 | 8 14 18 26 31 40 Average Carried 16 | 7 9 16 24 30 31 Final Capacity 32 | 8 16 18 26 32 24 Final Carried 31 | 8 14 16 26 31 22 Class Distribution -------------------- 56% | Mutant 40% | Hauler-Mutant Dominant Class ---------------- Mutant | -10/Materials Mutant | -10/Mines Hauler-Mutant | -9/Materials Hauler-Mutant | -9/Mines Hauler-Mutant | -9/Exiles Resources | -11 -10 -10 -9 -9 -9 ----------- Run | Scr Mat Min Mat Min Exi Matter Collected 2424 | 344 341 264 807 209 459 Remotely . | . . . . . . Salvage Created 3268 | 270 778 371 1617 231 1 Parts 236 | 24 56 20 101 35 . Haulers Intercepted 7 | . 2 . 5 . . Recyclers Shooed 3 | . 2 . 1 . . Parts Field Recycled . | . . . . . . Retrieved Matter . | . . . . . . Parts Self-Destructed . | . . . . . . Prevented . | . . . . . . Kills | -11 -10 -10 -9 -9 -9 ------- Run | Scr Mat Min Mat Min Exi Combat Hostiles Destroyed 82 | . 13 11 40 11 7 Melee 8 | . . 2 6 . . Guns 22 | . 9 . 13 . . Cannons 13 | . 4 2 5 2 . AOE 34 | . . 7 11 9 7 Classes Destroyed 12 | 2 6 . 2 2 . Worker 8 | . 1 3 2 2 . Builder 4 | . 2 . 2 . . Tunneler 13 | 8 1 . 1 3 . Hauler 7 | . 2 . 5 . . Recycler 10 | 1 3 1 4 1 . Mechanic 1 | . . . 1 . . Watcher 4 | . 2 . 2 . . Swarmer 44 | . 6 9 23 6 . Grunt 21 | . 7 2 9 3 . Duelist 1 | . . . . 1 . Sentry 8 | . . . 8 . . Assembled 8 | . . . . 1 7 Thug 1 | . . 1 . . . Best Kill Streak 9 | 2 4 5 9 7 7 Combat Bots Only 7 | . 3 3 5 6 7 Max Kills in Single Turn 4 | 1 2 4 4 4 2 Gunslinging . | . . . . . . Exploded 3 | . . 3 3 3 2 Melee 1 | . . 1 1 . . Uniques/NPCs Destroyed . | . . . . . . Combat | -11 -10 -10 -9 -9 -9 -------- Run | Scr Mat Min Mat Min Exi Damage Taken 3166 | 3 506 395 1492 350 420 Core 556 | . 76 71 240 100 69 Absorbed by Shields . | . . . . . . Core Remaining (%) 70 | 100 . 41 . . . Volleys Fired 241 | 37 64 35 71 16 18 Largest 2 | 2 2 2 2 2 2 Hottest 128 | 40 80 120 128 103 90 Shots Fired 427 | 74 125 49 127 23 29 Gun 259 | 74 76 12 79 2 16 Cannon 131 | . 46 28 39 14 4 Launcher 37 | . 3 9 9 7 9 Special . | . . . . . . Kinetic 232 | 74 76 5 68 9 . Thermal 129 | . 46 23 49 7 4 Explosive 37 | . 3 9 9 7 9 Electromagnetic 29 | . . 12 1 . 16 Robot Hit Streak 10 | 10 9 8 10 6 9 Robot Miss Streak 5 | 2 5 4 4 4 3 Penetration Max . | . . . . . . Secondary Targets 1 | . . . 1 . . Max Gunslinging Chain 1 | . . . 1 . . Shots Hit Robots 288 | 49 69 24 111 15 20 Core Hits 168 | 16 32 21 59 22 18 Critical Hits 6 | . 1 . 4 1 . Critical Kills . | . . . . . . Critical Parts Destroyed 6 | . 1 . 4 1 . Melee Attacks 52 | . . . 52 . . Impact 52 | . . . 52 . . Slashing . | . . . . . . Piercing . | . . . . . . Sneak Attacks 10 | . . . 10 . . Combat Hostiles . | . . . . . . Follow-up Attacks 3 | . . . 3 . . Damage Inflicted 7527 | 411 1029 843 3648 1037 559 Guns 1819 | 404 334 117 931 33 . Cannons 1472 | . 612 188 418 214 40 Explosions 3016 | . 83 500 1124 790 519 Melee 1098 | . . . 1098 . . Ramming 122 | 7 . 38 77 . . Kinetic 1685 | 404 334 50 793 104 . Thermal 1529 | . 612 198 536 143 40 Explosive 2956 | . 83 440 1124 790 519 Electromagnetic 137 | . . 117 20 . . Impact 1098 | . . . 1098 . . Slashing . | . . . . . . Piercing . | . . . . . . Highest Corruption . | . . . . . . Average Corruption . | . . . . . . Corruption Purged . | . . . . . . Overload Shots . | . . . . . . Overflow Damage 290 | . 8 22 251 . 9 Projectiles 30 | . 8 . 22 . . Explosions 88 | . . 22 57 . 9 Melee 172 | . . . 172 . . Knockbacks 3 | . . . 1 2 . Impact 1 | . . . 1 . . Kinetic 2 | . . . . 2 . Secondary . | . . . . . . Self-Inflicted Damage 194 | 3 . 127 41 23 . Shots 4 | . . 2 1 1 . Rammed 15 | 1 . 4 10 . . Targets Rammed 17 | 1 . 4 12 . . Kicked . | . . . . . . Crushed 2 | . . . 2 . . Highest Temperature 359 | . 228 232 348 258 359 Average Temperature 85 | . 59 103 89 125 104 Received Heat Transfer 483 | . 129 21 303 30 . Effects 4 | . 1 . 2 1 . Energy Bleed 3 | . 1 . 1 1 . Interference 1 | . . . 1 . . Siege Activations . | . . . . . . Robots Corrupted 1 | . . 1 . . . Combat Hostiles . | . . . . . . Parts Fried 3 | . . 1 2 . . Impact Corruptions 13 | . . . 13 . . Robots Melted 1 | . . . 1 . . Combat Hostiles 1 | . . . 1 . . Parts Melted 2 | . 1 . 1 . . Heat Transferred 3121 | . 1295 346 1147 259 74 Parts Sabotaged . | . . . . . . Parts Stolen . | . . . . . . Parts Stripped . | . . . . . . Power Chain Reactions 1 | . . 1 . . . Missiles Intercepted . | . . . . . . Alert | -11 -10 -10 -9 -9 -9 ------- Run | Scr Mat Min Mat Min Exi Peak Influence 778 | 23 341 250 778 573 . Average Influence 155 | 1 131 122 418 368 . Maximum Alert Level 3 | . 1 1 3 2 . Low Security (%) 67 | 100 75 77 20 . . Level 1 17 | . 24 22 27 78 . Level 2 9 | . . . 31 21 . Level 3 4 | . . . 20 . . Level 4 . | . . . . . . Level 5 . | . . . . . . High Security . | . . . . . . Max Security . | . . . . . . Squads Dispatched 5 | . 2 . 3 . . Investigation 3 | . 1 . 2 . . Extermination . | . . . . . . Reinforcement 1 | . 1 . . . . Assault 1 | . . . 1 . . Garrison . | . . . . . . Intercept . | . . . . . . Construction Impeded . | . . . . . . Haulers Reinforced . | . . . . . . Stealth | -11 -10 -10 -9 -9 -9 --------- Run | Scr Mat Min Mat Min Exi Distress Signals 4 | . . . 4 . . Communications Jammed . | . . . . . . Distress Signals . | . . . . . . Times Spotted 113 | . 23 11 62 12 5 Peak Tracking Total 9 | . 3 3 6 6 9 Tactical Retreats 7 | . 1 . 5 1 . Traps | -11 -10 -10 -9 -9 -9 ------- Run | Scr Mat Min Mat Min Exi Traps Triggered 2 | . 1 . 1 . . Indirectly . | . . . . . . Trap Hack Attempts . | . . . . . . Triggered . | . . . . . . Disarmed . | . . . . . . Reprogrammed . | . . . . . . Reused 4 | . . . . . 4 Traps Extracted . | . . . . . . Installed 4 | . . . . . 4 Triggered . | . . . . . . Machines | -11 -10 -10 -9 -9 -9 ---------- Run | Scr Mat Min Mat Min Exi Machines Disabled 14 | . . 7 3 1 3 Max in Single Turn 6 | . . 6 1 1 1 Machines Sabotaged . | . . . . . . Garrisons Compromised . | . . . . . . Overloaded Fab Kills . | . . . . . . Fab Network Shutdowns . | . . . . . . Hacking | -11 -10 -10 -9 -9 -9 --------- Run | Scr Mat Min Mat Min Exi Machines Accessed 14 | . 6 . 7 . 1 Terminals 10 | . 5 . 5 . . Fabricators . | . . . . . . Repair Stations . | . . . . . . Recycling Units 2 | . 1 . 1 . . Scanalyzers 1 | . . . 1 . . Garrison Access . | . . . . . . Total Hacks 43 | . 21 . 21 . 1 Successful 26 | . 10 . 15 . 1 Failed 17 | . 11 . 6 . . Catastrophic 1 | . 1 . . . . Database Lockouts . | . . . . . . Manual 29 | . 14 . 14 . 1 Terminals 35 | . 19 . 16 . . Fabricators . | . . . . . . Repair Stations . | . . . . . . Recycling Units 3 | . 2 . 1 . . Scanalyzers 4 | . . . 4 . . Garrison Access . | . . . . . . Terminal Hacks 9 | . 5 . 3 . 1 Terminal Index 1 | . . . 1 . . Unreport Threat 1 | . 1 . . . . Locate Traps 1 | . 1 . . . . Zone Layout 5 | . 3 . 2 . . EX-Prototype ID Bank 1 | . . . . . 1 Fabricator Hacks . | . . . . . . Repair Station Hacks . | . . . . . . Recycling Unit Hacks 2 | . 1 . 1 . . Retrieve Components 2 | . 1 . 1 . . Scanalyzer 4 | . . . 4 . . Insert Component 2 | . . . 2 . . Analyze 2 | . . . 2 . . Garrison Access Hacks . | . . . . . . Unauthorized Hacks 27 | . 10 . 17 . . Terminals 11 | . 4 . 7 . . Track 7 | . 3 . 4 . . Botnet 4 | . 1 . 3 . . Fabricators . | . . . . . . Repair Stations . | . . . . . . Recycling Units . | . . . . . . Scanalyzers . | . . . . . . Garrison Access . | . . . . . . Data Cores Recovered . | . . . . . . Used . | . . . . . . Hacking Detections 12 | . 6 . 6 . . Full Trace Events 1 | . . . 1 . . Feedback Events . | . . . . . . Feedback Blocked . | . . . . . . Robot Schematics Acquired . | . . . . . . Robots Built . | . . . . . . Matter . | . . . . . . Time . | . . . . . . Total Robot Build Rating . | . . . . . . Part Schematics Acquired 2 | . . . 2 . . Parts Built . | . . . . . . Matter . | . . . . . . Time . | . . . . . . Total Part Build Rating . | . . . . . . Parts Repaired . | . . . . . . Time . | . . . . . . Parts Recycled . | . . . . . . Recycled Matter . | . . . . . . Retrieved Matter . | . . . . . . Retrieved Components 13 | . 3 . 10 . . Parts Scanalyzed 2 | . . . 2 . . Part Schematics Acquired 2 | . . . 2 . . Parts Damaged . | . . . . . . Bothacking | -11 -10 -10 -9 -9 -9 ------------ Run | Scr Mat Min Mat Min Exi Used RIF Installer . | . . . . . . Robots Hacked . | . . . . . . Non-combat . | . . . . . . Combat . | . . . . . . Robot Hacks Applied . | . . . . . . Relay Couplers Released . | . . . . . . Robots Rewired . | . . . . . . Allies Hacked . | . . . . . . Hacks Repelled . | . . . . . . Allies | -11 -10 -10 -9 -9 -9 -------- Run | Scr Mat Min Mat Min Exi Total Allies 4 | . . 4 . . . Largest Group 3 | . . 3 3 . . Highest-Rated Group 40 | . . 40 40 . . Highest-Rated Ally 31 | . . 31 16 . . Total Orders . | . . . . . . Ally Attacks 26 | . . . 26 . . Total Damage 346 | . . . 346 . . Kills 7 | . . . 7 . . Allies Corrupted 1 | . . 1 . . . Allies Melted . | . . . . . . Intel | -11 -10 -10 -9 -9 -9 ------- Run | Scr Mat Min Mat Min Exi Robot Analysis Total . | . . . . . . Derelict Logs Recovered 2 | . . 2 . . . Drone Launches . | . . . . . . Drone Recoveries . | . . . . . . Exploration | -11 -10 -10 -9 -9 -9 ------------- Run | Scr Mat Min Mat Min Exi Turns Passed 11786 | 4954 1143 844 2365 910 1570 Spaces Moved 6175 | 2244 885 662 1186 410 788 Core 1763 | 1763 . . . . . Treads 1359 | . 62 . 467 400 430 Legs 358 | . . . . . 358 Wheels 2695 | 481 823 662 719 10 . Hover . | . . . . . . Flight . | . . . . . . Fastest Speed 50 | 50 90 100 110 130 85 Average Speed 169 | 215 96 108 151 204 180 Slowest Speed 260 | 250 180 130 200 260 220 Overloaded Moves 12 | . . . . . 12 Propulsion Burnouts . | . . . . . . Robots Hopped . | . . . . . . Cave-ins Triggered . | . . . . . . Exploration Rate (%) 83 | 89 88 98 80 76 68 Regions Visited 5 Branch Regions 3 Pre-discovered Areas 1 | . . 1 . . . Known Exits Taken 1 | . . 1 . . . Unknown Exits Taken 4 | 1 1 . 1 1 . Scrap Searched 5 | . . 3 . 2 . Spaces Dug 74 | . 24 31 19 . . Terrain Destroyed 252 | . 24 86 71 59 12 Melee 4 | . . . 4 . . Projectile . | . . . . . . AOE 248 | . 24 86 67 59 12 Actions | -11 -10 -10 -9 -9 -9 --------- Run | Scr Mat Min Mat Min Exi Total 7009 | 2300 1060 738 1541 453 917 Wait 206 | . 62 5 109 9 21 Move 6170 | 2243 884 661 1185 409 788 Hop . | . . . . . . Pick Up 116 | 10 13 9 41 6 37 Fast Attach 11 | 7 . . 1 . 3 Attach 21 | . 2 3 9 1 6 Detach 3 | . . . . . 3 Swap 99 | . 22 15 39 12 11 Drop 73 | 2 13 6 26 . 26 Fire 241 | 37 64 35 71 16 18 Melee 48 | . . . 48 . . Ram 5 | 1 . 4 . . . Kick . | . . . . . . Crush 12 | . . . 12 . . Escape Stasis . | . . . . . . Rewire . | . . . . . . Trap 4 | . . . . . 4 Miscellaneous . | . . . . . . Route ------- -11/Scrapyard -10/Materials (discovered 4 exits: *Mat x2 / [*Min x2]) -10/Mines (discovered 2 exits: *Mat x2) -9/Materials (discovered 5 exits: [*Mat x2] / [*Min x2] / [*Sto]) -9/Mines (discovered 2 exits: [*Mat] / *Exi) -9/Exiles History --------- Turn | Location | Event 9 | -11/Scrapyard | Discovered new exit (range 15) 4955 | -11/Scrapyard | Entered Materials 4956 | -10/Materials | Build established: Mutant 5048 | -10/Materials | Discovered new exit (range 9) 5139 | -10/Materials | Discovered new exit (range 5) 5155 | -10/Materials | Discovered new exit (range 16) 5542 | -10/Materials | Discovered new exit (range 14) 5824 | -10/Materials | Build established: Scavenger-Mutant 6098 | -10/Materials | Entered Mines 6122 | -10/Mines | Received a Mining Laser from a helpful Derelict 6176 | -10/Mines | Build established: Mutant 6370 | -10/Mines | Identified exit to Materials 6498 | -10/Mines | Learned location of Recycling (-9) 6585 | -10/Mines | Discovered exit to Materials (range 12) 6705 | -10/Mines | Core integrity fell below 50% 6921 | -10/Mines | Assisted by bots powering up and referring to "LRC-V3" 6942 | -10/Mines | Entered Materials 6942 | -9/Materials | Accompanied by 3 allies 6942 | -9/Materials | Evolved 2 slots: Utility x2 7268 | -9/Materials | Build established: Hauler-Mutant 7318 | -9/Materials | Discovered new exit (range 16) 7721 | -9/Materials | Discovered new exit (range 9) 7949 | -9/Materials | Discovered new exit (range 7) 8332 | -9/Materials | Discovered new exit (range 15) 8443 | -9/Materials | Discovered new exit (range 16) 8922 | -9/Materials | Core integrity fell below 50% 8942 | -9/Materials | First assault squad dispatched 9307 | -9/Materials | Entered Mines 9351 | -9/Mines | Found a hidden stash of uninstalled traps 9448 | -9/Mines | Assembled infested the area 9625 | -9/Mines | Core integrity fell below 20% 9634 | -9/Mines | Discovered new exit (range 8) 9736 | -9/Mines | Found a damaged Exp. Sensor Array with a note attached 9742 | -9/Mines | Found Prototype Device 10207 | -9/Mines | Deemed a non-threat by the Exiles lab entrance 10209 | -9/Mines | Discovered new exit (range 5) 10217 | -9/Mines | Entered Exiles 10271 | -9/Exiles | Met 8R-AWN 10510 | -9/Exiles | Met EX-HEX 10626 | -9/Exiles | Met EX-DEC 11010 | -9/Exiles | Met EX-BIN 11040 | -9/Exiles | Aligned with FarCom system 11043 | -9/Exiles | Given EX-Vault access code 11098 | -9/Exiles | Opened EX-Vault 11113 | -9/Exiles | Found Potential Leg 11116 | -9/Exiles | Found Potential Leg 11133 | -9/Exiles | Found Field Lobotomy Kit 11147 | -9/Exiles | Found Chronowheel 11187 | -9/Exiles | Warned to stay clear of 0b10 Research branches 11689 | -9/Exiles | Attacked by the Exiles 11741 | -9/Exiles | Destroyed 7 combat bots 11787 | -9/Exiles | Destroyed by 8R-AWN with 8R-AWN's Boregun Last Messages --------------- 11778_ Penetrated by HV Slug. 11778_ HV Slug penetrates Wall. 11778_ Penetrated by HV Slug. 11778_ HV Slug penetrates Wall. 11780_ Penetrated by HV Slug. 11780_ HV Slug penetrates Wall. 11780_ Penetrated by HV Slug. 11780_ HV Slug penetrates Wall. 11782_ Penetrated by HV Slug. 11782_ HV Slug penetrates Wall. 11782_ Penetrated by HV Slug. 11782_ HV Slug penetrates Wall. 11785_ Penetrated by HV Slug. 11785_ HV Slug penetrates Wall. 11785_ Penetrated by HV Slug. 11785_ HV Slug penetrates Wall. 11787_ Penetrated by HV Slug. 11787_ Lgt. Armor Plating destroyed. 11787_ HV Slug penetrates Wall. 11787_ Penetrated by HV Slug. Map ----- +----------------------------------------------------+ | | | | | | | | | | | | | | | | | | | | | | | | | ????????????????#########????????????????????????? | | ????????????????# [ ] #????????????????????????? | | ????????????????# ][ #????????????????????????? | | ????????????????# / ![ #????????????????????????? | | ????????????????# ! ! X#????????????????????????? | | ????????????????##[ ! ##????????????????????????? | | ????????????????#X![ ! #?????????????????????????? | | ????????????????## ! #?????????????????????????? | | ?????????????????# #?????????????????????????? | | ?????????????????# #########?????????????????? | | ?????????????????# ##""""""#?????????????????? | | ?????????????????# ## #?????????????????? | | ?????????????????# g X""#?????????????????? | | ?????????????????# ^##@ """#?????????????????? | | ???????????####??# ^## "#?????????????????? | | ??????????""""""?# ####;;###?????????????????? | | ??????????"""" ## #???# #???????????????????? | | ?????????#""X" #????# #??????????????????? | | ?????????#" #?????# #?????????????????? | | ?????????#" ## ??????# #????????????????? | | ?????????#""""""?# #######;#???????????????? | | ?????????##"###??# #"""""""#???????????????? | | ?????????????????# #"""""""#???????????????? | | ?????????????????# ##"""""""#???????????????? | | ????????????????## ##"" """"#???????????????? | | ????????????????# """"#???????????????? | | ????????????????# """#???????????????? | | ???????????????? """#???????????????? | | ????????????????# """#???????????????? | | ????????????????# ""#???????????????? | | ???? """????????#" ""#???????????????? | | ???" """????????## """"???????????????? | | ???" ?????????# """#???????????????? | | ??"" ?????????#" "X" """"???????????????? | | ??"" "#????????#" """ #???????????????? | | ?? ""?????????#" """""""""#???????????????? | | ???" "?????????##" ###########???????????????? | | ???# #????????##"" #?????????????????????????? | +----------------------------------------------------+ Best States ------------- Heat Dissipation 28 Energy Generation 14 Energy Capacity 265 Matter Stores 300 Matter Capacity 300 Sight Range 16 Terrain Scan Range 16 Terrain Scan Density 10 Armor Coverage 300 Evasion (%) 43 Recoil Reduction 2 Item Schematics ----------------- Lrg. Storage Unit | -9/Materials | Scanalyzed Hcp. Storage Unit | -9/Materials | Scanalyzed Robot Schematics ------------------ None Fabricated ------------ Nothing Alien Tech Used ----------------- None Achievements -------------- None Challenges ------------ None Game ------ Seed IonSwarmCloak Manual? 0 Play Time 01:00:25 Cumulative 845.2 hours Start 2019.12.03 @ 23:41:25 End 2019.12.08 @ 17:46:03 Sessions 1 Manual Loads 0 Difficulty Rogue Special Mode None Game No. 330 Rogue 330 Adventurer 0 Explorer 0 Win Type - Total 21 Types 11/1/7/0/0/0/2 Lore% 95 Gallery% 96 Achievement% 80 Wizard Run 0 Options --------- ASCII 0 Keyboard 0 Movement Vi Keybinds 0 Fullscreen 0 Font 12/Crisp Map View 76x50 Tactical HUD 1 Map Filters NONE Filters NONE Steam 1 RUN: 61ca553b-8421-4877-af5d-afa58e32ac30